fUSD/lending_fUSD_20240501
["ID","MTS","AMOUNT","RATE_DAILY","PERIOD"]
[325177692,1714551031874,-760.3532562,0.00011395,2]
[325177693,1714551031884,-864.2352,0.000117,2]
[325177694,1714551031893,-210.1403,0.000117,2]
[325177695,1714551031904,-2443.59246119,0.00011749,2]
[325177696,1714551031913,-153.8216961,0.00011749,2]
[325177697,1714551031923,-155.75973344,0.00011755,2]
[325177698,1714551031933,-190.04,0.00011797,2]
[325177699,1714551031943,-19172.98029079,0.000118,2]
[325177700,1714551031952,-841.33913508,0.00011814,2]
[325177701,1714551031961,-7011.981,0.00011872,2]
[325177702,1714551031971,-500.0,0.00011897,2]
[325177703,1714551031980,-2500.0,0.00011897,2]
[325177704,1714551031990,-7500.0,0.00011897,2]
[325177705,1714551031999,-1252.6577,0.000119,2]
[325177706,1714551032008,-38888.98731173,0.000119,2]
[325177707,1714551032018,-430.13,0.00011938,2]
[325177708,1714551032027,-200.77,0.00011987,2]
[325177709,1714551032037,-200.77,0.00011987,2]
[325177710,1714551032046,-204.04245402,0.00011995,2]
[325177711,1714551032055,-198.86500247,0.00011995,2]
[325177712,1714551032065,-4732.06514365,0.00011995,2]
[325177713,1714551032075,-342.84193109,0.00011995,2]
[325177714,1714551032084,-180.02205767,0.00011995,2]
[325177715,1714551032093,-1242.67581309,0.00011995,2]
[325177716,1714551032102,-3073.67737017,0.00011996,2]
[325177717,1714551032112,-161037.91182332,0.00011997,2]
[325177718,1714551032317,-572.572,0.00011997,2]
[325177719,1714551032339,-1926.7925768,0.00011997,2]
[325177720,1714551032351,-120949.2465663,0.00011997,2]
[325177721,1714551032361,-5000.0,0.00012,2]
[325177722,1714551032371,-409.3828276,0.00012,2]
[325177723,1714551032382,-1000.0,0.00012,2]
[325177724,1714551032391,-300.0,0.00012,4]
[325177725,1714551032404,-300.0,0.00012,4]
[325177726,1714551032414,-174.19,0.00012033,2]
[325177727,1714551032423,-911.1,0.00012055,2]
[325177728,1714551032433,-414.11,0.00012055,2]
[325177729,1714551032443,-700.0,0.000121,4]
[325177730,1714551032452,-600.0,0.000121,4]
[325177731,1714551032461,-1258.0,0.00012153,2]
[325177732,1714551032471,-391.916,0.00012153,2]
[325177733,1714551032480,-1227.0,0.00012153,2]
[325177734,1714551032489,-797.0,0.00012153,2]
[325177735,1714551032499,-435.857,0.00012153,2]
[325177736,1714551032508,-610.0,0.00012153,2]
[325177737,1714551032516,-1861.0,0.00012153,2]
[325177738,1714551032525,-1722.632,0.00012153,2]
[325177739,1714551032534,-350.66,0.00012192,2]
[325177740,1714551032544,-1000.0,0.000122,4]
[325177741,1714551032553,-1000.0,0.000122,4]
[325177742,1714551032562,-5899.0,0.00012252,2]
[325177743,1714551032572,-5737.0,0.00012252,2]
[325177744,1714551032581,-22115.426,0.00012252,2]
[325177745,1714551032590,-2292.0,0.00012252,2]
[325177746,1714551032599,-155.78528382,0.00012254,2]
[325177747,1714551032609,-1400.0,0.000123,4]
[325177748,1714551032618,-1300.0,0.000123,4]
[325177749,1714551032626,-150.0,0.00012351,2]
[325177750,1714551032634,-462.0,0.00012351,2]
[325177751,1714551032644,-1395.0,0.00012351,2]
[325177752,1714551032658,-970.0,0.00012351,2]
[325177753,1714551032668,-2298.0,0.00012351,2]
[325177754,1714551032677,-1800.0,0.000124,4]
[325177755,1714551032687,-1600.0,0.000124,4]
[325177756,1714551032697,-190.71677691,0.00012407,2]
[325177757,1714551032707,-300.0,0.000125,4]
[325177758,1714551032719,-300.0,0.000125,4]
[325177759,1714551032728,-728.52,0.00012503,2]
[325177760,1714551032739,-300.0,0.000126,4]
[325177761,1714551032748,-300.0,0.000126,4]
[325177762,1714551032757,-1559.77486207,0.0001265,2]
[325177763,1714551032766,-155.0,0.000127,2]
[325177764,1714551032776,-300.0,0.000127,4]
[325177765,1714551032786,-300.0,0.000127,4]
[325177766,1714551032796,-260.58898933,0.00012725,2]
[325177767,1714551032806,-150.0,0.00012731,2]
[325177768,1714551032815,-167.46433142,0.00012737,2]
[325177769,1714551032824,-1034.84422268,0.00012738,2]
[325177770,1714551032833,-1108.89134912,0.00012738,2]
[325177771,1714551032843,-150.0,0.00012742,2]
[325177772,1714551032852,-150.0,0.00012747,2]
[325177773,1714551032862,-150.0,0.00012759,2]
[325177775,1714551032871,-2147.73453415,0.00012765,2]
[325177777,1714551032881,-167.46433142,0.00012773,2]
[325177779,1714551032891,-150.0,0.00012775,2]
[325177781,1714551032904,-150.0,0.0001278,2]
[325177783,1714551032913,-35806.06420016,0.000128,2]
[325177785,1714551032922,-300.0,0.000128,4]
[325177787,1714551032931,-300.0,0.000128,4]
[325177789,1714551032941,-3496.71037598,0.00012816,2]
[325177791,1714551032950,-150.0,0.00012822,2]
[325177793,1714551032959,-1500.0,0.00012824,2]
[325177795,1714551032969,-150.0,0.00012856,2]
[325177797,1714551032979,-150.0,0.0001286,2]
[325177799,1714551032988,-200.77,0.00012868,2]
[325177801,1714551032997,-156.73256051,0.00012869,2]
[325177802,1714551033007,-14509.51758885,0.0001287,2]
[325177803,1714551033017,-150.0,0.0001287,2]
[325177805,1714551033026,-200.77,0.0001287,2]
[325177807,1714551033035,-200.77,0.0001287,2]
[325177809,1714551033044,-200.77,0.0001287,2]
[325177811,1714551033054,-200.77,0.0001287,2]
[325177812,1714551033063,-200.77,0.0001287,2]
[325177813,1714551033072,-200.77,0.0001287,2]
[325177814,1714551033082,-200.77,0.0001287,2]
[325177815,1714551033091,-150.0,0.00012875,2]
[325177816,1714551033101,-47636.29357801,0.00012878,2]
[325177817,1714551033110,-69348.70297985,0.0001288,2]
[325177818,1714551033123,-1151.15,0.0001288,2]
[325177819,1714551033134,-1199.0027105,0.0001288,2]
[325177820,1714551033150,-2348.16,0.0001288,2]
[325177821,1714551033176,-21268.93383813,0.0001288,2]
[325177822,1714551033195,-1149.86250347,0.0001288,2]
[325177823,1714551033206,-546.01298297,0.0001288,2]
[325177824,1714551033217,-378.57345642,0.0001288,2]
[325177825,1714551033236,-1865.69249295,0.0001288,2]
[325177826,1714551033248,-670.28116184,0.0001288,2]
[325177827,1714551033259,-1146.72,0.0001288,2]
[325177828,1714551033270,-528.914135,0.0001288,2]
[325177829,1714551033291,-655.60712406,0.0001288,2]
[325177830,1714551033303,-561.51132701,0.0001288,2]
[325177831,1714551033325,-30044.675556,0.0001288,2]
[325177832,1714551033352,-579.978432,0.0001288,2]
[325177833,1714551033363,-363.20539468,0.0001288,2]
[325177853,1714551037666,-2875.0419189,0.0001288,2]
[325177856,1714551037734,-2078487.09968288,0.0001288,2]
[325177857,1714551037747,-340195.46099706,0.0001288,2]
[325177858,1714551037806,-631088.47947812,0.0001288,2]
[325177859,1714551037875,-424.88047589,0.0001288,2]
[325177860,1714551037887,-3545.5606408,0.0001288,2]
[325177861,1714551038016,-308.14539438,0.0001288,2]
[325177862,1714551038029,-12724.92267324,0.0001288,2]
[325177863,1714551038084,-585.89428871,0.0001288,2]
[325178132,1714551042712,-420.68061407,0.00011968,2]
[325178137,1714551042735,-1146.14499999,0.00011968,2]
[325178145,1714551042755,-11456.87000001,0.00011968,2]
[325178151,1714551042771,-255.78493256,0.00011968,2]
[325178159,1714551042799,-500.0,0.00011968,2]
[325178165,1714551042825,-867.40153589,0.00011968,2]
[325178168,1714551042838,-479.5999999,0.00011968,2]
[325178175,1714551042860,-2878.75,0.00011968,2]
[325178179,1714551042873,-4032.71791758,0.00011968,2]
[325178183,1714551042886,-155.05590328,0.00012879,2]
[325178189,1714551042899,-3854.75039914,0.00012879,2]
[325178199,1714551042946,-4420.66320086,0.00012879,2]
[325178201,1714551042957,-15881.60694229,0.0001288,2]
[325178204,1714551042971,-287.049456,0.0001288,2]
[325178245,1714551045015,-345.30254868,0.0001288,2]
[325178246,1714551045026,-2018.54046871,0.0001288,2]
[325178247,1714551045045,-6446.9,0.0001288,2]
[325178248,1714551045056,-181839.93326429,0.0001288,2]
[325178249,1714551045068,-65406.49177665,0.0001288,2]
[325178250,1714551045077,-1500.0,0.00012881,2]
[325178251,1714551045085,-150.0,0.00012881,2]
[325178252,1714551045094,-150.0,0.00012883,2]
[325178253,1714551045103,-150.0,0.0001289,2]
[325178254,1714551045112,-150.0,0.00012892,2]
[325178255,1714551045121,-1000.0,0.00012895,2]
[325178256,1714551045130,-500.0,0.00012895,2]
[325178257,1714551045139,-1000.0,0.00012896,2]
[325178258,1714551045148,-1000.0,0.00012896,2]
[325178259,1714551045158,-1000.0,0.00012896,2]
[325178260,1714551045167,-500.0,0.00012896,2]
[325178261,1714551045176,-500.0,0.00012896,2]
[325178262,1714551045185,-265.3246,0.00012898,2]
[325178263,1714551045194,-1143.104,0.00012898,2]
[325178264,1714551045203,-173.8775067,0.00012899,2]
[325178265,1714551045212,-171.69622301,0.00012899,2]
[325178266,1714551045221,-177.61628187,0.00012899,2]
[325178267,1714551045231,-150.0,0.00012899,2]
[325178268,1714551045240,-173.8775067,0.000129,2]
[325178269,1714551045250,-408.57913442,0.000129,2]
[325178270,1714551045259,-173.8775067,0.000129,2]
[325178271,1714551045268,-800.0,0.000129,4]
[325178272,1714551045277,-1008.0,0.000129,2]
[325178273,1714551045286,-700.0,0.000129,4]
[325178274,1714551045295,-1375.53334681,0.000129,2]
[325178275,1714551045304,-1375.53334681,0.000129,2]
[325178276,1714551045313,-1375.53334681,0.000129,2]
[325178277,1714551045322,-1375.53334681,0.000129,2]
[325178278,1714551045331,-1375.53334681,0.000129,2]
[325178279,1714551045340,-1375.53334681,0.000129,2]
[325178280,1714551045349,-1375.53334681,0.000129,2]
[325178281,1714551045358,-150.0,0.00012903,2]
[325178282,1714551045367,-550.3,0.0001292,3]
[325178283,1714551045376,-150.0,0.0001294,2]
[325178284,1714551045385,-301.18144149,0.00012945,2]
[325178285,1714551045394,-150.0,0.00012968,2]
[325178286,1714551045403,-936.17401351,0.0001298,2]
[325178287,1714551045424,-318.16804095,0.0001298,2]
[325178288,1714551045435,-45723.24276775,0.0001298,2]
[325178289,1714551045445,-11832.02537778,0.0001298,2]
[325178290,1714551045461,-628.18,0.0001298,2]
[325178291,1714551045472,-14626.65567963,0.0001298,2]
[325178293,1714551046437,-575.51,0.00011968,2]
[325178294,1714551046447,-2318.8672,0.00012867,2]
[325178295,1714551046459,-987.32499812,0.00012867,2]
[325178296,1714551046468,-2620.42575326,0.00012879,2]
[325178297,1714551046503,-1440.74065585,0.00012879,2]
[325178298,1714551046604,-938.83359089,0.00012879,2]
[325178299,1714551046614,-628.79682713,0.00012879,2]
[325178300,1714551046624,-1176.47749818,0.00012879,2]
[325178301,1714551046633,-3000.42090111,0.0001298,2]
[325178302,1714551046695,-6926.58178483,0.0001298,2]
[325178303,1714551046707,-17119.13266067,0.0001298,2]
[325178304,1714551046720,-150.0,0.00012982,2]
[325178305,1714551046730,-21692.3478301,0.00012987,2]
[325178306,1714551046739,-18298.51950924,0.00012987,2]
[325178307,1714551046750,-577.653,0.00012987,2]
[325178308,1714551046763,-896.44191788,0.00012987,2]
[325178309,1714551046775,-288.05176688,0.00012987,2]
[325178310,1714551046784,-2587.00910223,0.00012987,2]
[325178311,1714551046797,-918.75679,0.00012987,2]
[325178312,1714551046817,-357.55885543,0.00012987,2]
[325178316,1714551046985,-76.032,0.00012987,2]
[325182172,1714551147065,163.47493395,0.00010425,2]
[325182173,1714551218856,-155.0,0.00011559,2]
[325182174,1714551218882,-968.39033166,0.0001156,2]
[325182175,1714551218908,-684.71861083,0.00011561,2]
[325182176,1714551218934,-5550.71573575,0.00011561,2]
[325182177,1714551218961,-2644.942405,0.00011562,2]
[325182178,1714551218988,-163.47493395,0.00011621,2]
[325182179,1714551219014,-53532.75798281,0.00011695,2]
[325182180,1714551303547,150.0,0.00010993,2]
[325182181,1714551304245,150.0,0.00010993,2]
[325182187,1714551436768,150.57621703,0.00010636,2]
[325182188,1714551442049,163.47493395,0.00010494,2]
[325182189,1714551443077,133.72084788,0.00010666,2]
[325182190,1714551443105,29.75408607,0.00010666,2]
[325182191,1714551444134,163.47493395,0.00010871,2]
[325182199,1714551542642,408.77030768,0.00010871,2]
[325182200,1714551548272,179.79467674,0.00010871,2]
[325182201,1714551552842,1186.49949904,0.00010871,2]
[325182202,1714551552869,562.73626014,0.00010871,2]
[325182203,1714551569112,653.69922553,8.697e-05,2]
[325182204,1714551587031,416.22357568,6.958e-05,2]
[325182210,1714552022019,5461.34830268,0.00025,120]
[325182212,1714552178068,-3168.41548277,0.00010384,2]
[325182213,1714552178095,-10.74671334,0.00010385,2]
[325182214,1714552178129,-711.17801866,0.00010385,2]
[325182215,1714552178158,-155.0,0.00010547,2]
[325182216,1714552178185,-157.83605592,0.00010548,2]
[325182217,1714552178214,-200.0,0.00010849,2]
[325182218,1714552178244,-640.29,0.00010863,2]
[325182219,1714552178275,-233.76,0.00010863,2]
[325182220,1714552178306,-1081.09812153,0.00010869,2]
[325182221,1714552178340,-347.42822595,0.00010869,2]
[325182222,1714552178366,-2831.73397016,0.0001087,2]
[325182223,1714552178397,-2522.35602984,0.0001087,2]
[325182224,1714552178424,-656.80616627,0.00010871,2]
[325182225,1714552178462,-3179.16219611,0.00010871,2]
[325182226,1714552178490,-3179.16219611,0.00010871,2]
[325182227,1714552178525,-1343.4974677,0.00010871,2]
[325182228,1714552178562,-3179.16219611,0.00010871,2]
[325182229,1714552178592,-3179.16219611,0.00010871,2]
[325182230,1714552178640,-1881.58515498,0.00010871,2]
[325182231,1714552178671,-150.0,0.00010959,2]
[325182232,1714552178699,-820.73,0.00010959,3]
[325182233,1714552178728,-326.84704113,0.00010959,2]
[325182234,1714552178775,-352.08295887,0.00010959,2]
[325182235,1714552178813,-250.0,0.00010959,2]
[325182236,1714552178844,-159.32,0.00010965,2]
[325182237,1714552178872,-2417.75923724,0.00011,2]
[325182254,1714552232652,-2432.75,0.00011,2]
[325182262,1714552232731,-98.35930105,0.00011,2]
[325182263,1714552232741,-507.98,0.00011014,2]
[325182264,1714552232750,-159.32,0.00011079,2]
[325182265,1714552232760,-139.99688712,0.00011127,2]
[325182266,1714552232907,-110.00311288,0.00011127,2]
[325182267,1714552232917,-741.92,0.00011128,2]
[325182268,1714552232926,-159.32,0.00011194,2]
[325182269,1714552232936,-230.52,0.00011237,2]
[325182270,1714552232946,-1187.57,0.00011237,2]
[325182271,1714552232955,-159.32,0.00011308,2]
[325182272,1714552232964,-13350.9233309,0.00011334,2]
[325182273,1714552232976,-1415.06371918,0.00011334,2]
[325182274,1714552232988,-357.905496,0.00011334,2]
[325182275,1714552233000,-550.46035353,0.00011334,2]
[325182276,1714552233012,-6191.60174306,0.00011334,2]
[325182277,1714552233025,-551.36002,0.00011334,2]
[325182278,1714552233045,-470.39363538,0.00011334,2]
[325182279,1714552233057,-1002.29170195,0.00011334,2]
[325182280,1714552233067,-159.32,0.00011422,2]
[325182281,1714552233083,-150.99,0.00011422,2]
[325182282,1714552233095,-159.32,0.00011536,2]
[325182283,1714552233106,-556.51241228,0.00011583,2]
[325182284,1714552233118,-99.08758772,0.00011583,2]
[325182285,1714552233128,-516.68293228,0.00011586,2]
[325182286,1714552233144,-138.91706772,0.00011586,2]
[325182287,1714552233155,-188.423786,0.00011589,2]
[325182323,1714552238130,-467.176214,0.00011589,2]
[325182324,1714552238139,-655.6,0.00011592,2]
[325182325,1714552238148,-17.863786,0.00011595,4]
[325182326,1714552238160,-555.906214,0.00011595,4]
[325182327,1714552238169,-655.6,0.00011595,2]
[325182328,1714552238179,-655.6,0.00011599,2]
[325182329,1714552238189,-1125.89,0.00011599,2]
[325182330,1714552238199,-655.6,0.00011602,2]
[325182331,1714552238208,-499.99,0.00011602,2]
[325182332,1714552238217,-655.6,0.00011605,2]
[325182333,1714552238226,-655.6,0.00011608,2]
[325182334,1714552238235,-655.6,0.00011611,2]
[325182335,1714552238244,-655.6,0.00011614,2]
[325182336,1714552238253,-655.6,0.00011617,2]
[325182337,1714552238262,-655.6,0.0001162,2]
[325182338,1714552238271,-655.6,0.00011623,2]
[325182339,1714552238279,-655.6,0.00011626,2]
[325182340,1714552238288,-655.6,0.00011629,2]
[325182341,1714552238297,-1465.10390552,0.00011631,2]
[325182342,1714552238306,-655.6,0.00011632,2]
[325182343,1714552238315,-655.6,0.00011635,2]
[325182344,1714552238329,-655.6,0.00011638,2]
[325182345,1714552238338,-655.6,0.00011641,2]
[325182346,1714552238347,-157.8360559,0.00011674,2]
[325182347,1714552238357,-268.26470373,0.00011696,2]
[325182348,1714552238366,-169.48,0.00011713,2]
[325182349,1714552238376,-163.74,0.00011733,2]
[325182350,1714552238385,-667.0206,0.000118,2]
[325182351,1714552238395,-54355.7394,0.000118,2]
[325182352,1714552238405,-1000.0,0.000118,2]
[325182353,1714552238413,-500.0,0.00012,2]
[325182354,1714552238423,-500.0,0.00012,2]
[325182355,1714552238432,-500.0,0.00012,2]
[325182356,1714552238442,-500.0,0.00012,2]
[325182357,1714552238451,-500.0,0.00012,2]
[325182358,1714552238460,-500.0,0.00012,2]
[325182359,1714552238470,-500.0,0.00012,2]
[325182360,1714552238479,-500.0,0.00012,2]
[325182361,1714552238488,-500.0,0.00012,2]
[325182362,1714552238502,-500.0,0.00012,2]
[325182363,1714552238511,-500.0,0.00012,2]
[325182364,1714552238520,-500.0,0.00012,2]
[325182365,1714552238529,-500.0,0.00012,2]
[325182366,1714552238538,-500.0,0.00012,2]
[325182367,1714552238547,-500.0,0.00012,2]
[325182368,1714552238557,-500.0,0.00012,2]
[325182369,1714552238566,-500.0,0.00012,2]
[325182370,1714552238578,-500.0,0.00012,2]
[325182371,1714552238587,-500.0,0.00012,2]
[325182372,1714552238596,-500.0,0.00012,2]
[325182373,1714552238605,-500.0,0.00012,2]
[325182374,1714552238614,-500.0,0.00012,2]
[325182375,1714552238623,-500.0,0.00012,2]
[325182376,1714552238633,-500.0,0.00012,2]
[325182377,1714552238642,-500.0,0.00012,2]
[325182378,1714552238651,-500.0,0.00012,2]
[325182379,1714552238664,-500.0,0.00012,2]
[325182381,1714552238673,-500.0,0.00012,2]
[325182383,1714552238682,-500.0,0.00012,2]
[325182384,1714552238691,-500.0,0.00012,2]
[325182386,1714552238700,-500.0,0.00012,2]
[325182388,1714552238710,-500.0,0.00012,2]
[325182390,1714552238719,-500.0,0.00012,2]
[325182392,1714552238727,-500.0,0.00012,2]
[325182394,1714552238737,-500.0,0.00012,2]
[325182396,1714552238746,-500.0,0.00012,2]
[325182397,1714552238754,-500.0,0.00012,2]
[325182399,1714552238764,-500.0,0.00012,2]
[325182401,1714552238773,-500.0,0.00012,2]
[325182403,1714552238782,-500.0,0.00012,2]
[325182405,1714552238791,-500.0,0.00012,2]
[325182407,1714552238800,-500.0,0.00012,2]
[325182409,1714552238809,-500.0,0.00012,2]
[325182411,1714552238818,-500.0,0.00012,2]
[325182413,1714552238829,-500.0,0.00012,2]
[325182415,1714552238838,-500.0,0.00012,2]
[325182417,1714552238848,-469.2,0.00012,2]
[325182418,1714552238857,-500.0,0.00012,2]
[325182420,1714552238866,-500.0,0.00012,2]
[325182422,1714552238875,-500.0,0.00012,2]
[325182424,1714552238883,-500.0,0.00012,2]
[325182426,1714552238892,-500.0,0.00012,2]
[325182428,1714552238902,-500.0,0.00012,2]
[325182430,1714552238912,-500.0,0.00012,2]
[325182432,1714552238921,-500.0,0.00012,2]
[325182434,1714552238930,-500.0,0.00012,2]
[325182436,1714552238940,-500.0,0.00012,2]
[325182438,1714552238950,-243.48,0.00012,2]
[325182440,1714552238959,-500.0,0.00012,2]
[325182442,1714552238968,-500.0,0.00012,2]
[325182444,1714552238978,-2450.0,0.00012,3]
[325182446,1714552238987,-5000.0,0.00012,2]
[325182448,1714552238997,-409.3828276,0.00012054,2]
[325182450,1714552239006,-154.61,0.00012055,2]
[325182452,1714552239015,-1475.46,0.00012055,2]
[325182454,1714552239025,-1499.53,0.00012112,2]
[325182456,1714552239034,-911.32,0.00012112,2]
[325182458,1714552239044,-911.32,0.00012112,2]
[325182460,1714552239055,-911.32,0.00012112,2]
[325182463,1714552239065,-911.32,0.00012141,2]
[325182464,1714552239074,-414.22,0.00012141,2]
[325182466,1714552239086,-911.32,0.00012141,2]
[325182468,1714552239095,-414.22,0.00012141,2]
[325182470,1714552239105,-911.32,0.00012141,2]
[325182472,1714552239113,-414.22,0.00012141,2]
[325182474,1714552239122,-911.32,0.00012141,2]
[325182476,1714552239132,-911.32,0.00012141,2]
[325182479,1714552239143,-640.29,0.0001222,2]
[325182481,1714552239152,-2011.00618802,0.00012253,2]
[325182483,1714552239162,-350.66,0.00012278,2]
[325182484,1714552239173,-300.0,0.00012278,2]
[325182486,1714552239182,-170.94,0.00012295,2]
[325182488,1714552239191,-183.14401397,0.00012346,2]
[325182491,1714552239201,-1177.0,0.0001245,2]
[325182492,1714552239210,-5895.0,0.0001245,2]
[325182494,1714552239220,-4595.198,0.0001245,2]
[325182497,1714552239232,-301.95,0.00012466,2]
[325182499,1714552239242,-741.92,0.00012518,2]
[325182501,1714552239253,-1269.9693,0.0001258,2]
[325182503,1714552239263,-230.52,0.00012641,2]
[325182505,1714552239273,-1000.0,0.0001268,2]
[325182507,1714552239283,-155.0,0.00012727,2]
[325182509,1714552239292,-3496.71037598,0.00012728,2]
[325182511,1714552239302,-150.0,0.00012748,2]
[325182513,1714552239311,-150.0,0.0001277,2]
[325182515,1714552239321,-150.0,0.00012772,2]
[325182516,1714552239332,-150.0,0.00012778,2]
[325182518,1714552239342,-15628.3465,0.0001278,2]
[325182544,1714552239560,-157.8360559,0.000128,2]
[325182546,1714552239569,-1246.63328931,0.000128,2]
[325182548,1714552239580,-150.0,0.00012806,2]
[325182550,1714552239589,-1246.63328927,0.00012807,2]
[325182552,1714552239599,-1246.63328927,0.00012814,2]
[325182554,1714552239608,-1246.63328927,0.00012821,2]
[325182556,1714552239617,-150.0,0.00012825,2]
[325182558,1714552239626,-1246.63328927,0.00012829,2]
[325182560,1714552239635,-1246.63328927,0.00012836,2]
[325182562,1714552239645,-1246.63328927,0.00012843,2]
[325182564,1714552239654,-1246.63328927,0.0001285,2]
[325182566,1714552239663,-1246.63328927,0.00012857,2]
[325182568,1714552239672,-3000.0,0.0001286,2]
[325182570,1714552239681,-150.0,0.00012863,2]
[325182572,1714552239690,-1246.63328927,0.00012864,2]
[325182574,1714552239699,-150.0,0.00012866,2]
[325182576,1714552239708,-3217.72069957,0.00012866,2]
[325182578,1714552239717,-150.0,0.00012871,2]
[325182580,1714552239727,-317.01746459,0.00012879,2]
[325182582,1714552239736,-710.33944675,0.00012879,2]
[325182584,1714552239745,-252.49467778,0.00012879,2]
[325182586,1714552239754,-7500.0,0.00012887,2]
[325182588,1714552239763,-1000.0,0.00012896,2]
[325182590,1714552239772,-500.0,0.00012896,2]
[325182592,1714552239781,-155.0,0.00012898,2]
[325182594,1714552239790,-256.838455,0.00012898,2]
[325182596,1714552239799,-152.10763626,0.00012899,2]
[325182598,1714552239808,-152.10763622,0.00012899,2]
[325182600,1714552239817,-152.10763622,0.000129,2]
[325182602,1714552239827,-152.10763622,0.000129,2]
[325182603,1714552239836,-10000.0,0.000129,2]
[325182606,1714552239846,-176.35323577,0.000129,2]
[325182608,1714552239855,-68610.82347361,0.000129,2]
[325182610,1714552239871,-460.72551053,0.000129,2]
[325182614,1714552239903,-1036.24451051,0.000129,2]
[325182617,1714552239915,-285.96158916,0.000129,2]
[325182619,1714552239926,-9856.18108819,0.000129,2]
[325182621,1714552239938,-577.94559081,0.000129,2]
[325182623,1714552239949,-3504.36369245,0.000129,2]
[325182626,1714552239960,-19259.18755817,0.000129,2]
[325182628,1714552239975,-334.13536002,0.000129,2]
[325182631,1714552239990,-146074.43162655,0.000129,2]
[325182633,1714552240000,-152.10763622,0.000129,2]
[325182635,1714552240009,-150.0,0.00012908,2]
[325182637,1714552240019,-150.0,0.00012909,2]
[325182639,1714552240028,-150.0,0.00012921,2]
[325182641,1714552240038,-504.5,0.00012928,3]
[325182643,1714552240048,-150.0,0.00012945,2]
[325182645,1714552240060,-150.0,0.00012959,2]
[325182647,1714552240069,-150.0,0.00012971,2]
[325182649,1714552240083,-150.0,0.00012977,2]
[325182651,1714552240092,-155.39633959,0.00012977,2]
[325182653,1714552240104,-150.0,0.0001298,2]
[325182655,1714552240114,-570.0,0.00012986,2]
[325182657,1714552240123,-211.0241655,0.00012987,2]
[325182659,1714552240132,-211.0241655,0.00012987,2]
[325182661,1714552240141,-211.0241655,0.00012987,2]
[325182663,1714552240150,-211.0241655,0.00012987,2]
[325182665,1714552240162,-211.0241655,0.00012987,2]
[325182667,1714552240172,-211.0241655,0.00012987,2]
[325182669,1714552240181,-3634.1161638,0.00012987,2]
[325182671,1714552240190,-3164.125447,0.00012987,2]
[325182673,1714552240199,-2694.1347303,0.00012987,2]
[325182675,1714552240208,-2224.1440135,0.00012987,2]
[325182677,1714552240217,-1754.1532967,0.00012987,2]
[325182679,1714552240227,-1284.16258,0.00012987,2]
[325182681,1714552240236,-15079.8402458,0.00012987,2]
[325182683,1714552240245,-13137.9069264,0.00012987,2]
[325182685,1714552240256,-11195.973607,0.00012987,2]
[325182687,1714552240265,-9254.0402875,0.00012987,2]
[325182689,1714552240275,-7312.1069681,0.00012987,2]
[325182692,1714552240284,-5370.1736487,0.00012987,2]
[325182693,1714552240295,-18782.7001964,0.00012987,2]
[325182696,1714552240304,-16373.6147364,0.00012987,2]
[325182697,1714552240314,-13964.5292764,0.00012987,2]
[325182699,1714552240323,-11555.4438165,0.00012987,2]
[325182701,1714552240340,-9146.3583565,0.00012987,2]
[325182703,1714552240349,-6737.2728965,0.00012987,2]
[325182705,1714552240358,-150.0,0.00012989,2]
[325182708,1714552240368,-2222.99999901,0.0001299,2]
[325182710,1714552240377,-529.0261948,0.0001299,2]
[325182712,1714552240386,-375.0,0.0001299,2]